fUSD/lending_fUSD_20240220
["ID","MTS","AMOUNT","RATE_DAILY","PERIOD"]
[314538602,1708410640152,-485.08547877,0.00035616,2]
[314538603,1708410640161,-500.0,0.00035616,2]
[314538604,1708410640171,-500.0,0.00035616,2]
[314538605,1708410640181,-500.0,0.00035616,2]
[314538606,1708410640191,-538.20270446,0.00035616,2]
[314538607,1708410640200,-500.0,0.00035616,2]
[314538608,1708410640211,-500.0,0.00035616,2]
[314538609,1708410640222,-500.0,0.00035616,2]
[314538610,1708410640234,-500.0,0.00035616,2]
[314538611,1708410640243,-500.0,0.00035616,2]
[314538612,1708410640253,-500.0,0.00035616,2]
[314538613,1708410640264,-500.0,0.00035616,2]
[314538614,1708410640274,-500.0,0.00035616,2]
[314538615,1708410640283,-500.0,0.00035616,2]
[314538616,1708410640293,-500.0,0.00035616,2]
[314538617,1708410640302,-500.0,0.00035616,2]
[314538618,1708410640312,-500.0,0.00035616,2]
[314538619,1708410640321,-500.0,0.00035616,2]
[314538620,1708410640332,-511.88357626,0.00035616,2]
[314538621,1708410640342,-500.0,0.00035616,2]
[314538622,1708410640352,-524.6,0.00035616,2]
[314538623,1708410640361,-500.0,0.00035616,2]
[314538624,1708410640371,-500.0,0.00035616,2]
[314538625,1708410640381,-500.0,0.00035616,2]
[314538626,1708410640391,-500.0,0.00035616,2]
[314538627,1708410640404,-500.0,0.00035616,2]
[314538628,1708410640414,-500.0,0.00035616,2]
[314538629,1708410640424,-500.0,0.00035616,2]
[314538630,1708410640434,-500.0,0.00035616,2]
[314538631,1708410640444,-532.9483548,0.00035616,2]
[314538632,1708410640454,-500.0,0.00035616,2]
[314538633,1708410640464,-500.0,0.00035616,2]
[314538634,1708410640474,-500.0,0.00035616,2]
[314538635,1708410640485,-500.0,0.00035616,2]
[314538636,1708410640495,-519.44464379,0.00035616,2]
[314538637,1708410640507,-500.0,0.00035616,2]
[314538638,1708410640517,-500.0,0.00035616,2]
[314538639,1708410640527,-500.0,0.00035616,2]
[314538640,1708410640537,-500.0,0.00035616,2]
[314538641,1708410640547,-500.0,0.00035616,2]
[314538642,1708410640557,-500.0,0.00035616,2]
[314538643,1708410640568,-500.0,0.00035616,2]
[314538644,1708410640578,-500.0,0.00035616,2]
[314538645,1708410640588,-500.0,0.00035616,2]
[314538646,1708410640598,-500.0,0.00035616,2]
[314538647,1708410640609,-574.58,0.00035616,2]
[314538648,1708410640619,-500.0,0.00035616,2]
[314538649,1708410640629,-500.0,0.00035616,2]
[314538650,1708410640639,-500.0,0.00035616,2]
[314538651,1708410640649,-500.0,0.00035616,2]
[314538652,1708410640659,-500.0,0.00035616,2]
[314538653,1708410640668,-518.95,0.00035616,2]
[314538654,1708410640678,-500.0,0.00035616,2]
[314538655,1708410640689,-500.0,0.00035616,2]
[314538656,1708410640699,-500.0,0.00035616,2]
[314538657,1708410640708,-500.0,0.00035616,2]
[314538658,1708410640718,-500.0,0.00035616,2]
[314538659,1708410640728,-500.0,0.00035616,2]
[314538660,1708410640740,-500.0,0.00035616,2]
[314538661,1708410640750,-617.15,0.00035616,2]
[314538662,1708410640761,-500.0,0.00035616,2]
[314538663,1708410640771,-621.55,0.00035616,2]
[314538664,1708410640781,-500.0,0.00035616,2]
[314538665,1708410640791,-500.0,0.00035616,2]
[314538666,1708410640800,-500.0,0.00035616,2]
[314538667,1708410640810,-564.0,0.00035616,2]
[314538668,1708410640820,-500.0,0.00035616,2]
[314538669,1708410640831,-500.0,0.00035616,2]
[314538670,1708410640842,-1317.59,0.00035616,2]
[314538671,1708410640851,-753.8,0.00035616,2]
[314538672,1708410640860,-1062.04,0.00035616,2]
[314538673,1708410640871,-691.96,0.00035616,2]
[314538674,1708410640882,-500.0,0.00035616,2]
[314538675,1708410640892,-741.84,0.00035616,2]
[314538676,1708410640902,-783.3,0.00035616,2]
[314538677,1708410640911,-500.0,0.00035616,2]
[314538678,1708410640920,-500.0,0.00035616,2]
[314538679,1708410640930,-500.0,0.00035616,2]
[314538680,1708410640939,-945.16,0.00035616,2]
[314538681,1708410640949,-500.0,0.00035616,2]
[314538682,1708410640958,-500.0,0.00035616,2]
[314538683,1708410640968,-500.0,0.00035616,2]
[314538684,1708410640977,-574.71,0.00035616,2]
[314538685,1708410640986,-500.0,0.00035616,2]
[314538686,1708410640996,-694.82,0.00035616,2]
[314538687,1708410641005,-500.0,0.00035616,2]
[314538688,1708410641014,-500.0,0.00035616,2]
[314538689,1708410641024,-500.0,0.00035616,2]
[314538690,1708410641033,-500.0,0.00035616,2]
[314538691,1708410641042,-2636.35,0.00035616,2]
[314538692,1708410641052,-892.32,0.00035616,2]
[314538693,1708410641061,-500.0,0.00035616,2]
[314538694,1708410641071,-500.0,0.00035616,2]
[314538695,1708410641080,-835.19,0.00035616,2]
[314538696,1708410641089,-500.0,0.00035616,2]
[314538697,1708410641099,-1337.8,0.00035616,2]
[314538698,1708410641108,-500.0,0.00035616,2]
[314538699,1708410641118,-566.46,0.00035616,2]
[314538700,1708410641127,-1333.26,0.00035616,2]
[314538701,1708410641137,-873.21,0.00035616,2]
[314538702,1708410641146,-500.0,0.00035616,2]
[314538703,1708410641156,-500.0,0.00035616,2]
[314538704,1708410641165,-500.0,0.00035616,2]
[314538705,1708410641174,-500.0,0.00035616,2]
[314538706,1708410641184,-560.3,0.00035616,2]
[314538707,1708410641193,-500.0,0.00035616,2]
[314538708,1708410641203,-907.6,0.00035616,2]
[314538709,1708410641213,-500.0,0.00035616,2]
[314538710,1708410641222,-500.0,0.00035616,2]
[314538711,1708410641231,-500.0,0.00035616,2]
[314538712,1708410641241,-584.05,0.00035616,2]
[314538713,1708410641250,-500.0,0.00035616,2]
[314538714,1708410641260,-500.0,0.00035616,2]
[314538715,1708410641270,-500.0,0.00035616,2]
[314538716,1708410641280,-500.0,0.00035616,2]
[314538717,1708410641290,-500.0,0.00035616,2]
[314538718,1708410641299,-500.0,0.00035616,2]
[314538719,1708410641309,-2713.55,0.00035616,2]
[314538720,1708410641319,-500.0,0.00035616,2]
[314538721,1708410641328,-515.03,0.00035616,2]
[314538722,1708410641337,-679.51,0.00035616,2]
[314538723,1708410641346,-500.0,0.00035616,2]
[314538724,1708410641356,-500.0,0.00035616,2]
[314538725,1708410641366,-848.86,0.00035616,2]
[314538726,1708410641375,-1700.21,0.00035616,2]
[314538727,1708410641385,-500.0,0.00035616,2]
[314538728,1708410641396,-1117.31,0.00035616,2]
[314538729,1708410641405,-500.0,0.00035616,2]
[314538730,1708410641415,-500.0,0.00035616,2]
[314538731,1708410641425,-598.02,0.00035616,2]
[314538732,1708410641435,-500.0,0.00035616,2]
[314538733,1708410641445,-1931.56,0.00035616,2]
[314538734,1708410641454,-500.0,0.00035616,2]
[314538735,1708410641464,-5345.43,0.00035616,2]
[314538736,1708410641476,-1730.44,0.00035616,2]
[314538737,1708410641486,-517.29,0.00035616,2]
[314538738,1708410641495,-500.0,0.00035616,2]
[314538739,1708410641505,-596.05,0.00035616,2]
[314538740,1708410641516,-601.03,0.00035616,2]
[314538741,1708410641525,-500.0,0.00035616,2]
[314538742,1708410641535,-301.33996438,0.00035616,2]
[314538743,1708410641545,-898.93,0.00035616,2]
[314538744,1708410641555,-500.0,0.00035616,2]
[314538745,1708410641565,-603.64,0.00035616,2]
[314538746,1708410641575,-500.0,0.00035616,2]
[314538747,1708410641585,-500.0,0.00035616,2]
[314538748,1708410641594,-497.54759157,0.00035616,2]
[314538749,1708410641604,-715.42,0.00035616,2]
[314538750,1708410641614,-500.0,0.00035616,2]
[314538751,1708410641624,-910.35,0.00035616,2]
[314538752,1708410641634,-500.0,0.00035616,2]
[314538753,1708410641643,-500.0,0.00035616,2]
[314538754,1708410641653,-500.0,0.00035616,2]
[314538755,1708410641663,-500.0,0.00035616,2]
[314538756,1708410641673,-500.0,0.00035616,2]
[314538757,1708410641683,-603.71,0.00035616,2]
[314538758,1708410641693,-500.0,0.00035616,2]
[314538759,1708410641703,-1790.81,0.00035616,2]
[314538760,1708410641713,-500.0,0.00035616,2]
[314538761,1708410641723,-500.0,0.00035616,2]
[314538762,1708410641733,-507.04,0.00035616,2]
[314538763,1708410641744,-500.0,0.00035616,2]
[314538764,1708410641754,-666.62,0.00035616,2]
[314538765,1708410641764,-3915.81,0.00035616,2]
[314538766,1708410641774,-500.0,0.00035616,2]
[314538767,1708410641785,-525.74,0.00035616,2]
[314538768,1708410641795,-562.3,0.00035616,2]
[314538769,1708410641805,-500.0,0.00035616,2]
[314538770,1708410641815,-500.0,0.00035616,2]
[314538771,1708410641825,-1023.15,0.00035616,2]
[314538772,1708410641834,-457.24293756,0.00035616,2]
[314538773,1708410641844,-500.0,0.00035616,2]
[314538774,1708410641854,-1071.27,0.00035616,2]
[314538775,1708410641863,-500.0,0.00035616,2]
[314538776,1708410641874,-614.05,0.00035616,2]
[314538777,1708410641884,-214.43141592,0.00035616,2]
[314538778,1708410641895,-510.36,0.00035616,2]
[314538779,1708410641905,-500.0,0.00035616,2]
[314538780,1708410641916,-679.88,0.00035616,2]
[314538781,1708410641927,-500.0,0.00035616,2]
[314538782,1708410641937,-671.21,0.00035616,2]
[314538783,1708410641947,-1127.52,0.00035616,2]
[314538784,1708410641958,-500.0,0.00035616,2]
[314538785,1708410641968,-500.0,0.00035616,2]
[314538786,1708410641979,-1001.29,0.00035616,2]
[314538787,1708410641990,-1806.36,0.00035616,2]
[314538788,1708410642000,-500.0,0.00035616,2]
[314538789,1708410642011,-500.0,0.00035616,2]
[314538790,1708410642020,-553.77,0.00035616,2]
[314538791,1708410642031,-500.0,0.00035616,2]
[314538792,1708410642042,-781.98,0.00035616,2]
[314538793,1708410642053,-500.0,0.00035616,2]
[314538794,1708410642063,-500.0,0.00035616,2]
[314538795,1708410642072,-500.0,0.00035616,2]
[314538796,1708410642083,-623.92,0.00035616,2]
[314538797,1708410642094,-745.78,0.00035616,2]
[314538798,1708410642106,-687.59,0.00035616,2]
[314538799,1708410642117,-500.0,0.00035616,2]
[314538800,1708410642128,-500.0,0.00035616,2]
[314538801,1708410642139,-1014.21,0.00035616,2]
[314538802,1708410642148,-920.58,0.00035616,2]
[314538803,1708410642159,-1025.6,0.00035616,2]
[314538804,1708410642170,-859.46,0.00035616,2]
[314538805,1708410642181,-633.97,0.00035616,2]
[314538806,1708410642191,-500.0,0.00035616,2]
[314538807,1708410642201,-500.0,0.00035616,2]
[314538808,1708410642426,-500.0,0.00035616,2]
[314538809,1708410642442,-707.94,0.00035616,2]
[314538810,1708410642452,-725.69,0.00035616,2]
[314538811,1708410642463,-500.0,0.00035616,2]
[314538812,1708410642473,-927.52,0.00035616,2]
[314538813,1708410642484,-500.0,0.00035616,2]
[314538814,1708410642495,-500.0,0.00035616,2]
[314538815,1708410642505,-723.37,0.00035616,2]
[314538816,1708410642516,-500.0,0.00035616,2]
[314538817,1708410642526,-2083.78,0.00035616,2]
[314538818,1708410642535,-500.0,0.00035616,2]
[314538819,1708410642545,-500.0,0.00035616,2]
[314538820,1708410642554,-505.46,0.00035616,2]
[314538821,1708410642564,-500.0,0.00035616,2]
[314538822,1708410642574,-500.0,0.00035616,2]
[314538823,1708410642583,-500.0,0.00035616,2]
[314538824,1708410642592,-4269.88,0.00035616,2]
[314538825,1708410642602,-500.0,0.00035616,2]
[314538826,1708410642611,-566.43,0.00035616,2]
[314538827,1708410642622,-500.0,0.00035616,2]
[314538828,1708410642631,-500.0,0.00035616,2]
[314538829,1708410642641,-1597.76,0.00035616,2]
[314538830,1708410642651,-778.62,0.00035616,2]
[314538831,1708410642660,-500.0,0.00035616,2]
[314538832,1708410642669,-500.0,0.00035616,2]
[314538833,1708410642679,-500.0,0.00035616,2]
[314538834,1708410642688,-500.0,0.00035616,2]
[314538835,1708410642698,-500.0,0.00035616,2]
[314538838,1708410642707,-500.0,0.00035616,2]
[314538840,1708410642716,-919.19,0.00035616,2]
[314538841,1708410642726,-500.0,0.00035616,2]
[314538842,1708410642735,-807.03,0.00035616,2]
[314538843,1708410642745,-671.35,0.00035616,2]
[314538844,1708410642755,-4704.84,0.00035616,2]
[314538845,1708410642766,-574.63,0.00035616,2]
[314538846,1708410642776,-2152.37,0.00035616,2]
[314538847,1708410642785,-500.0,0.00035616,2]
[314538848,1708410642794,-1923.11,0.00035616,2]
[314538849,1708410642804,-500.0,0.00035616,2]
[314538850,1708410642814,-500.0,0.00035616,2]
[314538851,1708410642823,-545.14,0.00035616,2]
[314538852,1708410642833,-500.0,0.00035616,2]
[314538853,1708410642843,-500.0,0.00035616,2]
[314538854,1708410642852,-500.0,0.00035616,2]
[314538855,1708410642864,-500.0,0.00035616,2]
[314538856,1708410642873,-500.0,0.00035616,2]
[314538857,1708410642883,-500.0,0.00035616,2]
[314538858,1708410642892,-1060.0,0.00035616,2]
[314538859,1708410642901,-500.0,0.00035616,2]
[314538860,1708410642911,-500.0,0.00035616,2]
[314538861,1708410642922,-500.0,0.00035616,2]
[314538862,1708410642932,-1066.15,0.00035616,2]
[314538863,1708410642941,-500.0,0.00035616,2]
[314538864,1708410642951,-500.0,0.00035616,2]
[314538865,1708410642960,-500.0,0.00035616,2]
[314538866,1708410642970,-932.9,0.00035616,2]
[314538867,1708410642980,-500.0,0.00035616,2]
[314538868,1708410642990,-500.0,0.00035616,2]
[314538869,1708410643000,-535.38692978,0.00035616,2]
[314538870,1708410643010,-500.0,0.00035616,2]
[314538871,1708410643019,-819.65,0.00035616,2]
[314538872,1708410643028,-500.0,0.00035616,2]
[314538873,1708410643038,-473.41203649,0.00035616,2]
[314538874,1708410643047,-500.0,0.00035616,2]
[314538875,1708410643056,-500.0,0.00035616,2]
[314538876,1708410643065,-500.0,0.00035616,2]
[314538877,1708410643074,-784.3,0.00035616,2]
[314538878,1708410643084,-500.0,0.00035616,2]
[314538879,1708410643093,-422.0,0.00035616,2]
[314538880,1708410643102,-500.0,0.00035616,2]
[314538881,1708410643111,-500.0,0.00035616,2]
[314538882,1708410643120,-500.0,0.00035616,2]
[314538883,1708410643130,-973.7,0.00035616,2]
[314538884,1708410643139,-500.0,0.00035616,2]
[314538885,1708410643148,-500.0,0.00035616,2]
[314538886,1708410643158,-545.97,0.00035616,2]
[314538887,1708410643168,-500.0,0.00035616,2]
[314538888,1708410643177,-1549.06,0.00035616,2]
[314538889,1708410643186,-500.0,0.00035616,2]
[314538891,1708410643195,-550.89,0.00035616,2]
[314538893,1708410643204,-852.73,0.00035616,2]
[314538895,1708410643213,-1061.59,0.00035616,2]
[314538897,1708410643223,-500.0,0.00035616,2]
[314538899,1708410643231,-525.35,0.00035616,2]
[314538901,1708410643240,-500.0,0.00035616,2]
[314538903,1708410643249,-500.0,0.00035616,2]
[314538904,1708410643260,-234.72972704,0.00035682,2]
[314538905,1708410643270,-645.4,0.00035691,2]
[314538906,1708410643279,-585.99529321,0.00035699,2]
[314538907,1708410643288,-1939.53472455,0.00035699,2]
[314538908,1708410643298,-409.13030888,0.00035699,2]
[314538909,1708410643307,-644.59850536,0.00035699,2]
[314538910,1708410643317,-1108.36485888,0.00035699,2]
[314538911,1708410643327,-2652.60421577,0.000357,2]
[314538912,1708410643337,-33242.938273,0.000357,2]
[314538913,1708410643347,-224.40340079,0.000357,2]
[314538914,1708410643356,-3332.11778155,0.00035715,8]
[314538915,1708410643366,-155.0,0.00035788,4]
[314538916,1708410643375,-1008.00381533,0.00035789,4]
[314538917,1708410643385,-65676.5183097,0.0003579,2]
[314538918,1708410643398,-446.4,0.00035798,2]
[314538919,1708410643408,-1000.0,0.00035799,2]
[314538920,1708410643417,-1000.0,0.00035799,2]
[314538922,1708410643427,-5713.9333503,0.00035799,2]
[314538924,1708410643436,-351.42677283,0.000358,2]
[314538926,1708410643445,-3072394.32788806,0.000358,4]
[314538928,1708410643455,-1359399.90521767,0.000358,2]
[314538932,1708410643780,-11414.05518606,0.000358,2]
[314538933,1708410643808,-4183.76066294,0.000358,2]
[314538934,1708410643893,174.69,0.00027873,2]
[314538935,1708410644200,-500.0,0.00035616,2]
[314538936,1708410644209,-740.33,0.00035616,2]
[314538937,1708410644219,-566.64,0.00035616,2]
[314538938,1708410644228,-500.0,0.00035616,2]
[314538939,1708410644237,-41.71322388,0.000358,2]
[314538940,1708410644249,-4019.09127962,0.000358,2]
[314538941,1708410644261,-825.28,0.000358,2]
[314538942,1708410644273,-756.131,0.000358,2]
[314538943,1708410644284,-315.6,0.000358,2]
[314538944,1708410644324,-391.76,0.000358,2]
[314538945,1708410644400,-1827.96904648,0.000358,2]
[314538946,1708410644417,-848.02444771,0.000358,2]
[314538947,1708410644671,-500.0,0.00035616,2]
[314538948,1708410644682,-50203.64042885,0.000358,2]
[314538949,1708410644694,-1769.48740449,0.000358,2]
[314538950,1708410644742,-1173.15161258,0.000358,2]
[314538951,1708410644754,-779.48989336,0.000358,2]
[314538952,1708410645124,-488.9358558,0.00035737,2]
[314538953,1708410645144,-5651.57684897,0.00035615,4]
[314538954,1708410645153,-39.25850845,0.00035737,2]
[314538955,1708410645162,-461994.16464285,0.000358,2]
[314538956,1708410645173,-450.0,0.000358,2]
[314538957,1708410645199,-1039.56361754,0.000358,2]
[314538958,1708410645214,-7793.53575,0.000358,2]
[314538959,1708410645226,-7576.5376289,0.000358,2]
[314538960,1708410645263,-0.01506428,0.000358,2]
[314538961,1708410645289,-855.4855583,0.00035606,10]
[314538962,1708410645757,-1709.7944417,0.00035606,10]
[314538963,1708410645767,-25685.3376099,0.00035615,2]
[314538964,1708410645777,-500.0,0.00035616,2]
[314538965,1708410645787,-500.0,0.00035616,2]
[314538966,1708410645796,-1802.38313303,0.000357,2]
[314538967,1708410645805,-26457.33381539,0.000358,2]
[314538968,1708410645822,-500.62895699,0.000358,2]
[314538969,1708410645851,-586.22,0.000358,2]
[314538970,1708410645864,-1175.63029034,0.000358,2]
[314538971,1708410645876,-17587.0,0.000358,2]
[314538972,1708410645910,-1408.3973041,0.000358,2]
[314538973,1708410645922,-5232.22711971,0.000358,2]
[314538974,1708410646023,-334.94698314,0.00035615,3]
[314538975,1708410646033,-740.05301686,0.000358,2]
[314538976,1708410646045,-959.09729758,0.000358,2]
[314538977,1708410646173,-5198.0,0.000358,2]
[314538978,1708410646185,-1959.99715233,0.000358,2]
[314538979,1708410646198,-466.70474391,0.000358,2]
[314538980,1708411557158,-208.0,0.00029634,2]
[314538981,1708411557182,-150.0,0.00030633,2]
[314538982,1708411557205,-300.0,0.00031531,2]
[314538983,1708411557230,-126.71305642,0.00031532,5]
[314538985,1708411629107,-287.05749309,0.00031523,2]
[314538986,1708411629126,-1195.7529301,0.00031532,4]
[314538987,1708411629147,-81.28694358,0.00031532,5]
[314538988,1708411629166,-637.37146252,0.00031612,2]
[314538989,1708411632139,-220.76867795,0.00031532,4]
[314538990,1708411632161,-795.87853748,0.00031612,2]
[314538991,1708411632182,-150.0,0.00031621,3]
[314538992,1708411632204,-179.30857111,0.00031623,10]
[314538993,1708411638087,-220.76867795,0.00031532,4]
[314538994,1708411638110,-220.76867795,0.00031532,4]
[314538995,1708411638132,-1958.43142889,0.00031623,10]
[314538996,1708411638152,-45.19442447,0.00031623,10]
[314539001,1708411832354,-261.15578167,0.00031528,2]
[314539003,1708411832366,-1147.59323388,0.00031528,2]
[314539005,1708411832375,-25685.3376099,0.00031529,2]
[314539007,1708411832384,-4541.11032263,0.0003153,4]
[314539009,1708411832393,-220.76867795,0.00031532,4]
[314539011,1708411832402,-150.0,0.00031621,3]
[314539013,1708411832412,-350.0,0.00031621,3]
[314539015,1708411832422,-1195.7529301,0.00031623,4]
[314539017,1708411832431,-218.41730577,0.00031631,4]
[314539018,1708411832440,-179.25683176,0.00031631,4]
[314539019,1708411832450,-586.5322109,0.00031631,2]
[314539020,1708411832460,-1000.0,0.00031632,2]
[314539021,1708411832469,-499.99,0.00031632,2]
[314539022,1708411832479,-43608.69918597,0.00031633,2]
[314539023,1708411832505,-29507.40817499,0.00031633,2]
[314539024,1708411832515,-150.99,0.00031633,2]
[314539025,1708411832524,-614.85,0.00031853,2]
[314539026,1708411832533,-1469.31,0.0003221,2]
[314539027,1708411832542,-209.0,0.0003243,2]
[314539028,1708411832551,-856.35,0.00033052,2]
[314539029,1708411832561,-250.0,0.00033401,2]
[314539030,1708411832570,-184.19,0.00033463,2]
[314539031,1708411832579,-23900.0,0.00033463,2]
[314539032,1708411832588,-152.59,0.00033463,2]
[314539033,1708411832598,-434.69,0.0003348,2]
[314539034,1708411832607,-2000.0,0.00033538,2]
[314539035,1708411832616,-1000.0,0.00033538,2]
[314539036,1708411832625,-1045.64,0.00033538,2]
[314539037,1708411832634,-250.0,0.00033709,2]
[314539038,1708411832644,-159.41,0.00034025,2]
[314539039,1708411832653,-614.85,0.00034117,2]
[314539040,1708411832663,-1154.10980387,0.00034205,2]
[314539041,1708411832673,-1154.10980387,0.00034205,2]
[314539042,1708411832682,-158.17,0.00034394,2]
[314539043,1708411832691,-209.0,0.00034399,6]
[314539044,1708411832701,-159.41,0.00034511,2]
[314539045,1708411832710,-814.04,0.00034521,2]
[314539046,1708411832720,-159.41,0.00034997,2]
[314539047,1708411832729,-9687.30851456,0.00035,2]
[314539048,1708411832738,-5000.0,0.00035,2]
[314539049,1708411832748,-5000.0,0.00035,2]
[314539050,1708411832758,-331.151404,0.00035068,2]
[314539051,1708411832769,-434.69,0.00035124,2]
[314539052,1708411832779,-151.0212031,0.00035298,2]
[314539053,1708411832788,-151.0212031,0.00035398,2]
[314539054,1708411832798,-164.12937496,0.00035444,2]
[314539055,1708411832807,-1080.27270627,0.00035468,2]
[314539056,1708411832818,-159.41,0.00035483,2]
[314539057,1708411832827,-151.0212031,0.00035498,2]
[314539058,1708411832837,-33294.1861,0.000355,2]
[314539059,1708411832847,-800.0,0.00035513,2]
[314539060,1708411832857,-200.0,0.00035514,3]
[314539061,1708411832866,-800.0,0.00035514,2]
[314539062,1708411832876,-200.0,0.00035514,10]
[314539063,1708411832885,-200.0,0.00035514,10]
[314539064,1708411832894,-5000.0,0.00035516,3]
[314539065,1708411832903,-161.31746702,0.00035516,7]
[314539066,1708411832912,-2014.29365355,0.00035516,2]
[314539067,1708411832922,-151.0212031,0.00035598,2]
[314539068,1708411832932,-75758.24,0.000356,2]
[314539069,1708411832942,-100110.52429233,0.00035614,4]
[314539070,1708411832951,-500.0,0.00035616,2]
[314539071,1708411832961,-500.0,0.00035616,2]
[314539072,1708411832971,-500.0,0.00035616,2]
[314539073,1708411832980,-500.0,0.00035616,2]
[314539074,1708411832990,-500.0,0.00035616,2]
[314539075,1708411832999,-500.0,0.00035616,2]
[314539076,1708411833009,-500.0,0.00035616,2]
[314539077,1708411833018,-500.0,0.00035616,2]
[314539078,1708411833028,-500.0,0.00035616,2]
[314539079,1708411833037,-500.0,0.00035616,2]
[314539080,1708411833046,-500.0,0.00035616,2]
[314539081,1708411833055,-500.0,0.00035616,2]
[314539082,1708411833065,-500.0,0.00035616,2]
[314539083,1708411833075,-500.0,0.00035616,2]
[314539084,1708411833084,-500.0,0.00035616,2]
[314539085,1708411833093,-500.0,0.00035616,2]
[314539086,1708411833102,-500.0,0.00035616,2]
[314539087,1708411833112,-500.0,0.00035616,2]
[314539088,1708411833121,-500.0,0.00035616,2]
[314539089,1708411833131,-500.0,0.00035616,2]
[314539090,1708411833141,-500.0,0.00035616,2]
[314539091,1708411833150,-500.0,0.00035616,2]
[314539092,1708411833162,-500.0,0.00035616,2]
[314539093,1708411833172,-500.0,0.00035616,2]
[314539094,1708411833181,-500.0,0.00035616,2]
[314539095,1708411833191,-500.0,0.00035616,2]
[314539096,1708411833200,-500.0,0.00035616,2]
[314539097,1708411833210,-500.0,0.00035616,2]
[314539098,1708411833219,-500.0,0.00035616,2]
[314539099,1708411833228,-500.0,0.00035616,2]
[314539100,1708411833238,-500.0,0.00035616,2]
[314539101,1708411833247,-500.0,0.00035616,2]
[314539102,1708411833258,-500.0,0.00035616,2]
[314539103,1708411833279,-500.0,0.00035616,2]
[314539104,1708411833291,-500.0,0.00035616,2]
[314539105,1708411833303,-500.0,0.00035616,2]
[314539106,1708411833314,-500.0,0.00035616,2]
[314539107,1708411833324,-500.0,0.00035616,2]
[314539108,1708411833334,-500.0,0.00035616,2]
[314539109,1708411833346,-500.0,0.00035616,2]
[314539110,1708411833357,-500.0,0.00035616,2]
[314539111,1708411833368,-500.0,0.00035616,2]
[314539112,1708411833379,-500.0,0.00035616,2]
[314539113,1708411833389,-500.0,0.00035616,2]
[314539114,1708411833399,-512.45248556,0.00035616,2]
[314539115,1708411833408,-500.0,0.00035616,2]
[314539116,1708411833419,-500.0,0.00035616,2]
[314539117,1708411833429,-500.0,0.00035616,2]
[314539118,1708411833439,-500.0,0.00035616,2]
[314539119,1708411833449,-500.0,0.00035616,2]
[314539120,1708411833459,-500.0,0.00035616,2]
[314539121,1708411833469,-500.0,0.00035616,2]
[314539122,1708411833480,-500.0,0.00035616,2]
[314539123,1708411833490,-500.0,0.00035616,2]
[314539124,1708411833499,-500.0,0.00035616,2]
[314539125,1708411833510,-500.0,0.00035616,2]
[314539126,1708411833520,-500.0,0.00035616,2]
[314539127,1708411833530,-500.0,0.00035616,2]
[314539128,1708411833541,-500.0,0.00035616,2]
[314539129,1708411833551,-500.0,0.00035616,2]
[314539130,1708411833561,-500.0,0.00035616,2]
[314539131,1708411833571,-500.0,0.00035616,2]